[Event "Titled Tuesday Blitz July 05 Late 2022"]
[White "Leiva, Gianmarco"]
[Black "Skytte, Rasmus"]
[WhiteFideId "3804399"]
[BlackFideId "1404210"]
[WhiteElo "2323"]
[BlackElo "2430"]
[Result "1-0"]
[Round "08"]
[TimeControl "180+1"]
[Date "2022.07.05"]
[WhiteClock "0:00:08"]
[BlackClock "0:00:43"]

1. e4 {[%clk 0:03:00]}  d5 {[%clk 0:02:59]} 2. exd5 {[%clk 0:02:58]}  Qxd5 {[%clk 0:02:58]} 3. Nc3 {[%clk 0:02:58]}  Qa5 {[%clk 0:02:58]} 4. Bc4 {[%clk 0:02:57]}  Nf6 {[%clk 0:02:58]} 5. d3 {[%clk 0:02:40]}  c6 {[%clk 0:02:56]} 6. Bd2 {[%clk 0:02:28]}  Qc7 {[%clk 0:02:51]} 7. Qe2 {[%clk 0:02:24]}  Bf5 {[%clk 0:02:48]} 8. Nf3 {[%clk 0:02:19]}  Nbd7 {[%clk 0:02:44]} 9. Nh4 {[%clk 0:02:08]}  Bg6 {[%clk 0:02:43]} 10. h3 {[%clk 0:01:51]}  O-O-O {[%clk 0:02:39]} 11. O-O-O {[%clk 0:01:48]}  e6 {[%clk 0:02:38]} 12. Rhe1 {[%clk 0:01:39]}  Nd5 {[%clk 0:02:36]} 13. Nxg6 {[%clk 0:01:32]}  hxg6 {[%clk 0:02:35]} 14. Ne4 {[%clk 0:01:32]}  N7f6 {[%clk 0:02:34]} 15. Ng5 {[%clk 0:01:31]}  Bc5 {[%clk 0:02:24]} 16. Qf3 {[%clk 0:01:21]}  Rh4 {[%clk 0:02:20]} 17. Bb3 {[%clk 0:01:14]}  Bd6 {[%clk 0:02:12]} 18. Kb1 {[%clk 0:01:09]}  Rh5 {[%clk 0:01:59]} 19. g3 {[%clk 0:01:02]}  Rdh8 {[%clk 0:01:52]} 20. h4 {[%clk 0:00:58]}  Re8 {[%clk 0:01:47]} 21. d4 {[%clk 0:00:52]}  Ne7 {[%clk 0:01:36]} 22. Nxf7 {[%clk 0:00:51]}  Nf5 {[%clk 0:01:34]} 23. Nxd6+ {[%clk 0:00:42]}  Qxd6 {[%clk 0:01:33]} 24. c3 {[%clk 0:00:42]}  Rhh8 {[%clk 0:01:30]} 25. Bf4 {[%clk 0:00:41]}  Qd7 {[%clk 0:01:30]} 26. Re2 {[%clk 0:00:39]}  Rhf8 {[%clk 0:01:28]} 27. Be5 {[%clk 0:00:34]}  Nd5 {[%clk 0:01:26]} 28. Qe4 {[%clk 0:00:29]}  b6 {[%clk 0:01:24]} 29. Bc2 {[%clk 0:00:24]}  Kb7 {[%clk 0:01:24]} 30. Rh1 {[%clk 0:00:22]}  Nf6 {[%clk 0:01:21]} 31. Qf3 {[%clk 0:00:20]}  Qd5 {[%clk 0:01:20]} 32. Qxd5 {[%clk 0:00:19]}  Nxd5 {[%clk 0:01:17]} 33. g4 {[%clk 0:00:14]}  Nfe7 {[%clk 0:01:15]} 34. Bxg7 {[%clk 0:00:11]}  Rf4 {[%clk 0:01:14]} 35. h5 {[%clk 0:00:11]}  Rxg4 {[%clk 0:01:09]} 36. h6 {[%clk 0:00:11]}  Nf4 {[%clk 0:01:09]} 37. Re4 {[%clk 0:00:10]}  Nf5 {[%clk 0:01:08]} 38. Be5 {[%clk 0:00:07]}  Nxh6 {[%clk 0:01:01]} 39. Rxf4 {[%clk 0:00:06]}  Rxf4 {[%clk 0:01:01]} 40. Bxf4 {[%clk 0:00:07]}  Nf5 {[%clk 0:01:01]} 41. Rh7+ {[%clk 0:00:07]}  Ka6 {[%clk 0:01:01]} 42. Be4 {[%clk 0:00:07]}  Rc8 {[%clk 0:01:00]} 43. a4 {[%clk 0:00:06]}  b5 {[%clk 0:00:59]} 44. axb5+ {[%clk 0:00:07]}  Kxb5 {[%clk 0:00:59]} 45. Rxa7 {[%clk 0:00:05]}  Kb6 {[%clk 0:00:59]} 46. Rf7 {[%clk 0:00:05]}  Rh8 {[%clk 0:00:57]} 47. Rf6 {[%clk 0:00:05]}  Rh4 {[%clk 0:00:56]} 48. Bxf5 {[%clk 0:00:04]}  Rxf4 {[%clk 0:00:55]} 49. Rxg6 {[%clk 0:00:03]}  exf5 {[%clk 0:00:55]} 50. d5 {[%clk 0:00:03]}  Rxf2 {[%clk 0:00:54]} 51. Rxc6+ {[%clk 0:00:04]}  Kb7 {[%clk 0:00:52]} 52. c4 {[%clk 0:00:04]}  Rd2 {[%clk 0:00:51]} 53. Kc1 {[%clk 0:00:04]}  Rd4 {[%clk 0:00:51]} 54. Kc2 {[%clk 0:00:04]}  Rh4 {[%clk 0:00:50]} 55. Kc3 {[%clk 0:00:04]}  Rh2 {[%clk 0:00:48]} 56. b4 {[%clk 0:00:02]}  Rh8 {[%clk 0:00:48]} 57. Rf6 {[%clk 0:00:02]}  Rh5 {[%clk 0:00:47]} 58. Kd4 {[%clk 0:00:02]}  Kc7 {[%clk 0:00:46]} 59. Rf7+ {[%clk 0:00:02]}  Kd8 {[%clk 0:00:45]} 60. Kc5 {[%clk 0:00:02]}  Ke8 {[%clk 0:00:45]} 61. Rf6 {[%clk 0:00:03]}  Ke7 {[%clk 0:00:45]} 62. Re6+ {[%clk 0:00:03]}  Kf7 {[%clk 0:00:45]} 63. b5 {[%clk 0:00:04]}  f4 {[%clk 0:00:45]} 64. Re1 {[%clk 0:00:05]}  Rh8 {[%clk 0:00:42]} 65. b6 {[%clk 0:00:05]}  Rc8+ {[%clk 0:00:42]} 66. Kb5 {[%clk 0:00:06]}  Kf6 {[%clk 0:00:42]} 67. b7 {[%clk 0:00:06]}  Rb8 {[%clk 0:00:42]} 68. Kc6 {[%clk 0:00:07]}  Kf5 {[%clk 0:00:41]} 69. Kc7 {[%clk 0:00:07]}  Rh8 {[%clk 0:00:42]} 70. b8=Q {[%clk 0:00:08]}  Rh7+ {[%clk 0:00:43]} 71. Kc6 {[%clk 0:00:08]} 1-0


[Site "https://www.chess.com"]

[Event "Titled Tuesday Blitz July 05 Late 2022"]
[White "Maghsoodloo, Parham"]
[Black "Raja Rithvik R"]
[WhiteFideId "12539929"]
[BlackFideId "35007394"]
[WhiteElo "2607"]
[BlackElo "2255"]
[Result "1-0"]
[Round "08"]
[TimeControl "180+1"]
[Date "2022.07.05"]
[WhiteClock "0:00:07"]
[BlackClock "0:00:01"]

1. d4 {[%clk 0:03:00]}  Nf6 {[%clk 0:02:59]} 2. c4 {[%clk 0:03:01]}  e6 {[%clk 0:03:00]} 3. Nc3 {[%clk 0:03:01]}  Bb4 {[%clk 0:03:01]} 4. e3 {[%clk 0:03:02]}  O-O {[%clk 0:03:01]} 5. Bd2 {[%clk 0:03:03]}  d5 {[%clk 0:02:58]} 6. Nf3 {[%clk 0:03:02]}  c5 {[%clk 0:02:56]} 7. a3 {[%clk 0:03:00]}  Bxc3 {[%clk 0:02:56]} 8. Bxc3 {[%clk 0:03:01]}  Ne4 {[%clk 0:02:56]} 9. Rc1 {[%clk 0:03:01]}  Nxc3 {[%clk 0:02:56]} 10. Rxc3 {[%clk 0:03:01]}  cxd4 {[%clk 0:02:45]} 11. Nxd4 {[%clk 0:03:01]}  dxc4 {[%clk 0:02:40]} 12. Bxc4 {[%clk 0:03:01]}  Bd7 {[%clk 0:02:40]} 13. Qc2 {[%clk 0:03:00]}  Nc6 {[%clk 0:02:40]} 14. Nf3 {[%clk 0:03:00]}  Rc8 {[%clk 0:02:37]} 15. O-O {[%clk 0:03:00]}  h6 {[%clk 0:02:30]} 16. h4 {[%clk 0:02:54]}  Qf6 {[%clk 0:02:21]} 17. Qe4 {[%clk 0:02:53]}  Na5 {[%clk 0:02:18]} 18. Bd3 {[%clk 0:02:53]}  g6 {[%clk 0:02:13]} 19. Ne5 {[%clk 0:02:38]}  Rxc3 {[%clk 0:01:53]} 20. Nxd7 {[%clk 0:02:33]}  Qd8 {[%clk 0:01:54]} 21. Bb5 {[%clk 0:01:37]}  Rc7 {[%clk 0:01:32]} 22. Nxf8 {[%clk 0:01:35]}  Qxf8 {[%clk 0:01:27]} 23. b4 {[%clk 0:01:33]}  Nc6 {[%clk 0:01:24]} 24. Rc1 {[%clk 0:01:33]}  Qd6 {[%clk 0:01:20]} 25. h5 {[%clk 0:00:43]}  g5 {[%clk 0:01:11]} 26. Bd3 {[%clk 0:00:31]}  f5 {[%clk 0:01:11]} 27. Qc4 {[%clk 0:00:31]}  Rc8 {[%clk 0:01:00]} 28. Bxf5 {[%clk 0:00:30]}  Kf7 {[%clk 0:00:40]} 29. Bg6+ {[%clk 0:00:30]}  Kg7 {[%clk 0:00:40]} 30. Qc3+ {[%clk 0:00:29]}  e5 {[%clk 0:00:41]} 31. Bf5 {[%clk 0:00:29]}  Rf8 {[%clk 0:00:32]} 32. Be4 {[%clk 0:00:28]}  Rc8 {[%clk 0:00:24]} 33. Qc5 {[%clk 0:00:27]}  Qe6 {[%clk 0:00:16]} 34. Qd5 {[%clk 0:00:24]}  Qe7 {[%clk 0:00:11]} 35. Bb1 {[%clk 0:00:21]}  Nxb4 {[%clk 0:00:11]} 36. Qd2 {[%clk 0:00:19]}  Rxc1+ {[%clk 0:00:11]} 37. Qxc1 {[%clk 0:00:20]}  Nd5 {[%clk 0:00:12]} 38. Qc2 {[%clk 0:00:18]}  Kf8 {[%clk 0:00:10]} 39. Qf5+ {[%clk 0:00:16]}  Nf6 {[%clk 0:00:09]} 40. Qc8+ {[%clk 0:00:14]}  Kg7 {[%clk 0:00:10]} 41. Bg6 {[%clk 0:00:13]}  b6 {[%clk 0:00:10]} 42. a4 {[%clk 0:00:13]}  e4 {[%clk 0:00:10]} 43. g4 {[%clk 0:00:11]}  Qd7 {[%clk 0:00:09]} 44. Qxd7+ {[%clk 0:00:11]}  Nxd7 {[%clk 0:00:10]} 45. Bxe4 {[%clk 0:00:11]}  Nc5 {[%clk 0:00:10]} 46. Bc6 {[%clk 0:00:11]}  Kf6 {[%clk 0:00:10]} 47. Kg2 {[%clk 0:00:11]}  Ke5 {[%clk 0:00:11]} 48. Kg3 {[%clk 0:00:12]}  Kd6 {[%clk 0:00:11]} 49. Be8 {[%clk 0:00:11]}  Ke7 {[%clk 0:00:12]} 50. Bb5 {[%clk 0:00:11]}  a6 {[%clk 0:00:12]} 51. Be2 {[%clk 0:00:11]}  Kd6 {[%clk 0:00:09]} 52. f4 {[%clk 0:00:11]}  Ne4+ {[%clk 0:00:09]} 53. Kf3 {[%clk 0:00:11]}  Nd2+ {[%clk 0:00:09]} 54. Kg2 {[%clk 0:00:10]}  gxf4 {[%clk 0:00:02]} 55. exf4 {[%clk 0:00:08]}  Ne4 {[%clk 0:00:01]} 56. Bxa6 {[%clk 0:00:07]}  Nc3 {[%clk 0:00:01]} 57. Bb5 {[%clk 0:00:07]}  Nd5 {[%clk 0:00:01]} 58. Kf3 {[%clk 0:00:07]}  Ke7 {[%clk 0:00:02]} 59. g5 {[%clk 0:00:07]}  Kf8 {[%clk 0:00:02]} 60. Bc4 {[%clk 0:00:07]}  Nc3 {[%clk 0:00:01]} 61. Bb3 {[%clk 0:00:07]}  Kg7 {[%clk 0:00:01]} 62. Ke3 {[%clk 0:00:07]} 1-0


[Site "https://www.chess.com"]

[Event "Titled Tuesday Blitz July 05 Late 2022"]
[White "Manelyuk, Daniil"]
[Black "Diaz Rosas, Julio Cesar"]
[WhiteFideId "44173920"]
[BlackFideId "5105099"]
[WhiteElo "2209"]
[BlackElo "2278"]
[Result "1-0"]
[Round "08"]
[TimeControl "180+1"]
[Date "2022.07.06"]
[WhiteClock "0:00:11"]
[BlackClock "0:00:04"]

1. e4 {[%clk 0:02:53]}  e5 {[%clk 0:02:59]} 2. Nf3 {[%clk 0:02:51]}  Nc6 {[%clk 0:02:58]} 3. Bb5 {[%clk 0:02:51]}  a6 {[%clk 0:02:58]} 4. Ba4 {[%clk 0:02:48]}  Nf6 {[%clk 0:02:58]} 5. O-O {[%clk 0:02:48]}  Nxe4 {[%clk 0:02:56]} 6. d4 {[%clk 0:02:43]}  b5 {[%clk 0:02:56]} 7. Bb3 {[%clk 0:02:43]}  d5 {[%clk 0:02:56]} 8. dxe5 {[%clk 0:02:43]}  Be6 {[%clk 0:02:55]} 9. c3 {[%clk 0:02:42]}  Be7 {[%clk 0:02:54]} 10. Nbd2 {[%clk 0:02:42]}  O-O {[%clk 0:02:53]} 11. Bc2 {[%clk 0:02:34]}  f5 {[%clk 0:02:51]} 12. exf6 {[%clk 0:02:32]}  Nxf6 {[%clk 0:02:49]} 13. Nb3 {[%clk 0:02:30]}  Qd7 {[%clk 0:02:45]} 14. Nfd4 {[%clk 0:02:27]}  Bg4 {[%clk 0:02:11]} 15. f3 {[%clk 0:02:25]}  Be6 {[%clk 0:01:52]} 16. Nxe6 {[%clk 0:02:16]}  Qxe6 {[%clk 0:01:53]} 17. Re1 {[%clk 0:02:16]}  Qd7 {[%clk 0:01:52]} 18. Bg5 {[%clk 0:02:12]}  Rae8 {[%clk 0:01:34]} 19. Qd3 {[%clk 0:02:07]}  g6 {[%clk 0:01:23]} 20. Rad1 {[%clk 0:02:04]}  Nh5 {[%clk 0:01:17]} 21. Bh6 {[%clk 0:01:58]}  Rf5 {[%clk 0:01:02]} 22. Qe3 {[%clk 0:01:47]}  Re5 {[%clk 0:00:56]} 23. Qxe5 {[%clk 0:01:24]}  Nxe5 {[%clk 0:00:57]} 24. Rxe5 {[%clk 0:01:24]}  Bd6 {[%clk 0:00:44]} 25. Rexd5 {[%clk 0:01:17]}  Qf7 {[%clk 0:00:34]} 26. Be4 {[%clk 0:01:05]}  Nf4 {[%clk 0:00:27]} 27. R5d2 {[%clk 0:00:53]}  Kh8 {[%clk 0:00:20]} 28. Nd4 {[%clk 0:00:44]}  Qf6 {[%clk 0:00:19]} 29. g3 {[%clk 0:00:34]}  g5 {[%clk 0:00:13]} 30. Nf5 {[%clk 0:00:30]}  Bc5+ {[%clk 0:00:10]} 31. Kh1 {[%clk 0:00:30]}  Ne6 {[%clk 0:00:08]} 32. Rd7 {[%clk 0:00:26]}  Bd6 {[%clk 0:00:07]} 33. Kg2 {[%clk 0:00:15]}  Qg6 {[%clk 0:00:06]} 34. Nxd6 {[%clk 0:00:13]}  Qf6 {[%clk 0:00:06]} 35. Nxe8 {[%clk 0:00:12]}  Qxh6 {[%clk 0:00:06]} 36. Nxc7 {[%clk 0:00:12]}  g4 {[%clk 0:00:06]} 37. Nxe6 {[%clk 0:00:11]}  Qxe6 {[%clk 0:00:04]} 38. Rd8+ {[%clk 0:00:10]}  Kg7 {[%clk 0:00:04]} 39. R1d7+ {[%clk 0:00:10]}  Kf6 {[%clk 0:00:04]} 40. Rd6 {[%clk 0:00:11]} 1-0


[Site "https://www.chess.com"]

[Event "Titled Tuesday Blitz July 05 Late 2022"]
[White "Martin Carmona, Gaston Manuel"]
[Black "Domingo Nunez, Ruben"]
[WhiteFideId "22284567"]
[BlackFideId "22245570"]
[WhiteElo "2162"]
[BlackElo "2373"]
[Result "0-1"]
[Round "08"]
[TimeControl "180+1"]
[Date "2022.07.05"]
[WhiteClock "0:01:02"]
[BlackClock "0:02:02"]

1. e4 {[%clk 0:03:00]}  Nc6 {[%clk 0:02:58]} 2. Nf3 {[%clk 0:02:59]}  d5 {[%clk 0:02:59]} 3. exd5 {[%clk 0:02:52]}  Qxd5 {[%clk 0:03:00]} 4. Nc3 {[%clk 0:02:53]}  Qa5 {[%clk 0:03:00]} 5. Bc4 {[%clk 0:02:52]}  Bg4 {[%clk 0:02:58]} 6. h3 {[%clk 0:02:51]}  Qh5 {[%clk 0:02:56]} 7. Be2 {[%clk 0:02:44]}  Nf6 {[%clk 0:02:50]} 8. Rg1 {[%clk 0:02:23]}  Bd7 {[%clk 0:02:47]} 9. d4 {[%clk 0:02:22]}  Qa5 {[%clk 0:02:40]} 10. Bf4 {[%clk 0:02:14]}  e6 {[%clk 0:02:38]} 11. Qd2 {[%clk 0:02:14]}  Bb4 {[%clk 0:02:37]} 12. a3 {[%clk 0:01:58]}  Ne4 {[%clk 0:02:25]} 13. Qc1 {[%clk 0:01:29]}  Bxc3+ {[%clk 0:02:23]} 14. bxc3 {[%clk 0:01:29]}  Qxc3+ {[%clk 0:02:23]} 15. Kf1 {[%clk 0:01:30]}  Nxd4 {[%clk 0:02:18]} 16. Be5 {[%clk 0:01:18]}  Nxe2 {[%clk 0:02:08]} 17. Bxc3 {[%clk 0:01:05]}  Nxc1 {[%clk 0:02:08]} 18. Bxg7 {[%clk 0:01:06]}  Rg8 {[%clk 0:02:02]} 19. Bb2 {[%clk 0:01:05]}  Bb5+ {[%clk 0:02:02]} 20. Ke1 {[%clk 0:01:02]}  Ne2 {[%clk 0:02:02]} 0-1


[Site "https://www.chess.com"]

[Event "Titled Tuesday Blitz July 05 Late 2022"]
[White "Melikhov, Evgeny V."]
[Black "Romanchuk, Viktor"]
[WhiteFideId "4122046"]
[BlackFideId "14109271"]
[WhiteElo "1995"]
[BlackElo "2242"]
[Result "1-0"]
[Round "08"]
[TimeControl "180+1"]
[Date "2022.07.06"]
[WhiteClock "0:00:08"]
[BlackClock "0:00:03"]

1. d4 {[%clk 0:03:00]}  d5 {[%clk 0:01:39]} 2. c4 {[%clk 0:02:58]}  c6 {[%clk 0:01:39]} 3. Nc3 {[%clk 0:02:58]}  Nf6 {[%clk 0:01:39]} 4. e3 {[%clk 0:02:59]}  e6 {[%clk 0:01:40]} 5. Nf3 {[%clk 0:02:59]}  Nbd7 {[%clk 0:01:40]} 6. Bd3 {[%clk 0:02:59]}  Be7 {[%clk 0:01:40]} 7. O-O {[%clk 0:02:58]}  O-O {[%clk 0:01:41]} 8. e4 {[%clk 0:02:58]}  dxe4 {[%clk 0:01:42]} 9. Nxe4 {[%clk 0:02:59]}  c5 {[%clk 0:01:42]} 10. Qe2 {[%clk 0:02:52]}  b6 {[%clk 0:01:42]} 11. Rd1 {[%clk 0:02:49]}  Bb7 {[%clk 0:01:41]} 12. dxc5 {[%clk 0:02:47]}  bxc5 {[%clk 0:01:42]} 13. Nxf6+ {[%clk 0:02:39]}  Bxf6 {[%clk 0:01:43]} 14. Bf4 {[%clk 0:02:18]}  Qc8 {[%clk 0:01:28]} 15. Ng5 {[%clk 0:02:08]}  h6 {[%clk 0:00:56]} 16. Nh7 {[%clk 0:02:00]}  Qc6 {[%clk 0:00:56]} 17. Qg4 {[%clk 0:01:47]}  Bxb2 {[%clk 0:00:18]} 18. Nxf8 {[%clk 0:01:42]}  Rxf8 {[%clk 0:00:14]} 19. Rab1 {[%clk 0:01:37]}  Ne5 {[%clk 0:00:14]} 20. Qg3 {[%clk 0:01:25]}  Nxd3 {[%clk 0:00:14]} 21. Rxd3 {[%clk 0:01:25]}  Bd4 {[%clk 0:00:13]} 22. Bxh6 {[%clk 0:01:18]}  Bf6 {[%clk 0:00:13]} 23. Rbd1 {[%clk 0:01:12]}  Re8 {[%clk 0:00:11]} 24. Be3 {[%clk 0:01:07]}  Ba6 {[%clk 0:00:10]} 25. Qg4 {[%clk 0:01:05]}  Qa4 {[%clk 0:00:09]} 26. Bxc5 {[%clk 0:00:59]}  Qxa2 {[%clk 0:00:09]} 27. R3d2 {[%clk 0:00:52]}  Qxc4 {[%clk 0:00:08]} 28. Qxc4 {[%clk 0:00:51]}  Bxc4 {[%clk 0:00:09]} 29. Bxa7 {[%clk 0:00:52]}  Ra8 {[%clk 0:00:09]} 30. Bd4 {[%clk 0:00:50]}  Bd5 {[%clk 0:00:09]} 31. Bxf6 {[%clk 0:00:50]}  gxf6 {[%clk 0:00:10]} 32. f3 {[%clk 0:00:50]}  f5 {[%clk 0:00:10]} 33. Kf2 {[%clk 0:00:50]}  Kg7 {[%clk 0:00:09]} 34. Kg3 {[%clk 0:00:49]}  Kf6 {[%clk 0:00:10]} 35. Rxd5 {[%clk 0:00:43]}  exd5 {[%clk 0:00:09]} 36. Rxd5 {[%clk 0:00:43]}  Ra4 {[%clk 0:00:10]} 37. Rb5 {[%clk 0:00:42]}  Kg5 {[%clk 0:00:09]} 38. h4+ {[%clk 0:00:40]}  Kg6 {[%clk 0:00:10]} 39. Rb6+ {[%clk 0:00:36]}  f6 {[%clk 0:00:10]} 40. Rb8 {[%clk 0:00:36]}  Rc4 {[%clk 0:00:09]} 41. Rg8+ {[%clk 0:00:35]}  Kh7 {[%clk 0:00:09]} 42. Rf8 {[%clk 0:00:33]}  Kg6 {[%clk 0:00:09]} 43. h5+ {[%clk 0:00:30]}  Kxh5 {[%clk 0:00:09]} 44. Rxf6 {[%clk 0:00:29]}  Kg5 {[%clk 0:00:09]} 45. Rf8 {[%clk 0:00:26]}  Rb4 {[%clk 0:00:09]} 46. Rg8+ {[%clk 0:00:22]}  Kf6 {[%clk 0:00:09]} 47. Kh3 {[%clk 0:00:21]}  Rb7 {[%clk 0:00:08]} 48. Ra8 {[%clk 0:00:18]}  Rh7+ {[%clk 0:00:07]} 49. Kg3 {[%clk 0:00:19]}  Rb7 {[%clk 0:00:07]} 50. Ra6+ {[%clk 0:00:17]}  Kg5 {[%clk 0:00:07]} 51. Ra5 {[%clk 0:00:18]}  Rb4 {[%clk 0:00:06]} 52. Kh3 {[%clk 0:00:17]}  Rc4 {[%clk 0:00:05]} 53. g4 {[%clk 0:00:17]}  Rf4 {[%clk 0:00:05]} 54. Kg3 {[%clk 0:00:16]}  Rb4 {[%clk 0:00:04]} 55. Rxf5+ {[%clk 0:00:15]}  Kg6 {[%clk 0:00:05]} 56. Ra5 {[%clk 0:00:14]}  Rc4 {[%clk 0:00:04]} 57. Ra6+ {[%clk 0:00:13]}  Kg7 {[%clk 0:00:02]} 58. f4 {[%clk 0:00:13]}  Rb4 {[%clk 0:00:02]} 59. f5 {[%clk 0:00:12]}  Rc4 {[%clk 0:00:03]} 60. Kh4 {[%clk 0:00:12]}  Rc7 {[%clk 0:00:03]} 61. Kg5 {[%clk 0:00:12]}  Rb7 {[%clk 0:00:03]} 62. Rd6 {[%clk 0:00:12]}  Rc7 {[%clk 0:00:03]} 63. Rg6+ {[%clk 0:00:09]}  Kf7 {[%clk 0:00:02]} 64. Rh6 {[%clk 0:00:10]}  Kg7 {[%clk 0:00:02]} 65. f6+ {[%clk 0:00:10]}  Kg8 {[%clk 0:00:02]} 66. Kf5 {[%clk 0:00:09]}  Rc5+ {[%clk 0:00:02]} 67. Kg6 {[%clk 0:00:08]}  Rc7 {[%clk 0:00:01]} 68. f7+ {[%clk 0:00:08]}  Rxf7 {[%clk 0:00:01]} 69. Rh8+ {[%clk 0:00:08]}  Kxh8 {[%clk 0:00:01]} 70. Kxf7 {[%clk 0:00:08]}  Kh7 {[%clk 0:00:02]} 71. g5 {[%clk 0:00:08]}  Kh8 {[%clk 0:00:03]} 72. Kf6 {[%clk 0:00:08]} 1-0


[Site "https://www.chess.com"]

[Event "Titled Tuesday Blitz July 05 Late 2022"]
[White "Miszler, Levente"]
[Black "Martins, Bruno Andre Leite"]
[WhiteFideId "763276"]
[BlackFideId "1942255"]
[WhiteElo "1966"]
[BlackElo "2282"]
[Result "1-0"]
[Round "08"]
[TimeControl "180+1"]
[Date "2022.07.06"]
[WhiteClock "0:00:04"]
[BlackClock "0:00:02"]

1. Nf3 {[%clk 0:03:00]}  Nf6 {[%clk 0:02:58]} 2. c4 {[%clk 0:03:00]}  g6 {[%clk 0:02:59]} 3. g3 {[%clk 0:03:01]}  Bg7 {[%clk 0:03:00]} 4. Bg2 {[%clk 0:03:02]}  O-O {[%clk 0:03:00]} 5. O-O {[%clk 0:03:02]}  d6 {[%clk 0:03:01]} 6. Nc3 {[%clk 0:03:03]}  e5 {[%clk 0:03:02]} 7. d3 {[%clk 0:03:03]}  Nc6 {[%clk 0:02:58]} 8. Rb1 {[%clk 0:03:03]}  a5 {[%clk 0:02:59]} 9. a3 {[%clk 0:03:03]}  Re8 {[%clk 0:02:59]} 10. Bg5 {[%clk 0:02:55]}  h6 {[%clk 0:02:49]} 11. Bxf6 {[%clk 0:02:53]}  Bxf6 {[%clk 0:02:47]} 12. b4 {[%clk 0:02:54]}  axb4 {[%clk 0:02:31]} 13. axb4 {[%clk 0:02:55]}  Bg7 {[%clk 0:02:31]} 14. b5 {[%clk 0:02:54]}  Ne7 {[%clk 0:02:29]} 15. Qc2 {[%clk 0:02:52]}  c6 {[%clk 0:02:17]} 16. Ra1 {[%clk 0:02:49]}  Be6 {[%clk 0:02:10]} 17. Rfb1 {[%clk 0:02:49]}  Qd7 {[%clk 0:01:54]} 18. Nd2 {[%clk 0:02:48]}  Nf5 {[%clk 0:01:46]} 19. e3 {[%clk 0:02:44]}  h5 {[%clk 0:01:37]} 20. Nde4 {[%clk 0:02:39]}  Qe7 {[%clk 0:01:27]} 21. bxc6 {[%clk 0:02:09]}  bxc6 {[%clk 0:01:28]} 22. h4 {[%clk 0:02:04]}  d5 {[%clk 0:01:21]} 23. Ng5 {[%clk 0:02:03]}  dxc4 {[%clk 0:01:14]} 24. Bxc6 {[%clk 0:02:00]}  cxd3 {[%clk 0:01:13]} 25. Qxd3 {[%clk 0:01:59]}  Rxa1 {[%clk 0:01:11]} 26. Rxa1 {[%clk 0:01:55]}  Rc8 {[%clk 0:01:01]} 27. Nxe6 {[%clk 0:01:33]}  Qxe6 {[%clk 0:00:51]} 28. Bd5 {[%clk 0:01:07]}  Rxc3 {[%clk 0:00:39]} 29. Qxc3 {[%clk 0:00:47]}  Qxd5 {[%clk 0:00:38]} 30. Rc1 {[%clk 0:00:41]}  e4 {[%clk 0:00:36]} 31. Qc8+ {[%clk 0:00:38]}  Kh7 {[%clk 0:00:36]} 32. Qc4 {[%clk 0:00:39]}  Qd2 {[%clk 0:00:32]} 33. Rf1 {[%clk 0:00:33]}  Nd6 {[%clk 0:00:29]} 34. Qc1 {[%clk 0:00:33]}  Qa5 {[%clk 0:00:19]} 35. Rd1 {[%clk 0:00:32]}  Qe5 {[%clk 0:00:19]} 36. Qc7 {[%clk 0:00:24]}  Bf8 {[%clk 0:00:16]} 37. Qc6 {[%clk 0:00:12]}  Kg8 {[%clk 0:00:11]} 38. Qd5 {[%clk 0:00:12]}  Qe7 {[%clk 0:00:11]} 39. Ra1 {[%clk 0:00:09]}  Ne8 {[%clk 0:00:10]} 40. Ra8 {[%clk 0:00:09]}  Nf6 {[%clk 0:00:10]} 41. Qd8 {[%clk 0:00:07]}  Qb4 {[%clk 0:00:08]} 42. Rb8 {[%clk 0:00:05]}  Qe1+ {[%clk 0:00:05]} 43. Kg2 {[%clk 0:00:05]}  Nh7 {[%clk 0:00:06]} 44. Rb7 {[%clk 0:00:04]}  Qe2 {[%clk 0:00:03]} 45. Qd7 {[%clk 0:00:04]}  Qf3+ {[%clk 0:00:04]} 46. Kg1 {[%clk 0:00:05]}  Qf6 {[%clk 0:00:03]} 47. Rb8 {[%clk 0:00:05]}  Qe7 {[%clk 0:00:02]} 48. Qxe7 {[%clk 0:00:04]} 1-0


[Site "https://www.chess.com"]

[Event "Titled Tuesday Blitz July 05 Late 2022"]
[White "Nguyen, Quoc Hy"]
[Black "Timofeev, Artyom"]
[WhiteFideId "12410853"]
[BlackFideId "4140419"]
[WhiteElo "1938"]
[BlackElo "2578"]
[Result "0-1"]
[Round "08"]
[TimeControl "180+1"]
[Date "2022.07.05"]
[WhiteClock "0:00:03"]
[BlackClock "0:00:22"]

1. d4 {[%clk 0:03:00]}  Nf6 {[%clk 0:02:59]} 2. Nf3 {[%clk 0:03:00]}  g6 {[%clk 0:02:59]} 3. Bg5 {[%clk 0:02:59]}  Bg7 {[%clk 0:02:58]} 4. Nbd2 {[%clk 0:02:59]}  O-O {[%clk 0:02:57]} 5. e4 {[%clk 0:02:53]}  d6 {[%clk 0:02:57]} 6. Bd3 {[%clk 0:02:53]}  Nc6 {[%clk 0:02:56]} 7. O-O {[%clk 0:02:51]}  e5 {[%clk 0:02:56]} 8. c3 {[%clk 0:02:51]}  h6 {[%clk 0:02:55]} 9. Bh4 {[%clk 0:02:51]}  Qe8 {[%clk 0:02:50]} 10. Re1 {[%clk 0:02:47]}  Nh5 {[%clk 0:02:49]} 11. d5 {[%clk 0:02:17]}  Ne7 {[%clk 0:02:44]} 12. Nf1 {[%clk 0:02:13]}  Nf4 {[%clk 0:02:43]} 13. Bg3 {[%clk 0:02:10]}  Nxd3 {[%clk 0:02:42]} 14. Qxd3 {[%clk 0:02:10]}  f5 {[%clk 0:02:42]} 15. exf5 {[%clk 0:01:48]}  gxf5 {[%clk 0:02:42]} 16. Bh4 {[%clk 0:01:42]}  Ng6 {[%clk 0:02:40]} 17. Qc4 {[%clk 0:01:38]}  Qf7 {[%clk 0:02:39]} 18. g3 {[%clk 0:01:13]}  f4 {[%clk 0:02:27]} 19. N1d2 {[%clk 0:01:12]}  Bg4 {[%clk 0:02:27]} 20. h3 {[%clk 0:01:03]}  Bxh3 {[%clk 0:02:25]} 21. Qd3 {[%clk 0:00:47]}  Bg4 {[%clk 0:02:22]} 22. Nh2 {[%clk 0:00:46]}  Bf5 {[%clk 0:02:21]} 23. Ne4 {[%clk 0:00:46]}  Kh8 {[%clk 0:01:47]} 24. Kh1 {[%clk 0:00:41]}  Rg8 {[%clk 0:01:46]} 25. Nf3 {[%clk 0:00:30]}  Raf8 {[%clk 0:01:42]} 26. Nfd2 {[%clk 0:00:22]}  fxg3 {[%clk 0:01:27]} 27. Bxg3 {[%clk 0:00:21]}  Bf6 {[%clk 0:01:22]} 28. Qf3 {[%clk 0:00:19]}  Qd7 {[%clk 0:01:05]} 29. Nxf6 {[%clk 0:00:17]}  Rxf6 {[%clk 0:01:05]} 30. Qh5 {[%clk 0:00:17]}  Kg7 {[%clk 0:01:04]} 31. Rg1 {[%clk 0:00:17]}  Bg4 {[%clk 0:01:04]} 32. Qh2 {[%clk 0:00:16]}  h5 {[%clk 0:01:01]} 33. Rae1 {[%clk 0:00:16]}  Rgf8 {[%clk 0:01:00]} 34. Bh4 {[%clk 0:00:16]}  Rf5 {[%clk 0:00:52]} 35. Rg3 {[%clk 0:00:14]}  Rxf2 {[%clk 0:00:50]} 36. Rg2 {[%clk 0:00:14]}  Rxg2 {[%clk 0:00:50]} 37. Kxg2 {[%clk 0:00:15]}  Qf5 {[%clk 0:00:49]} 38. Bg3 {[%clk 0:00:14]}  Qc2 {[%clk 0:00:48]} 39. Kg1 {[%clk 0:00:14]}  Qxb2 {[%clk 0:00:41]} 40. Ne4 {[%clk 0:00:14]}  Qxh2+ {[%clk 0:00:41]} 41. Bxh2 {[%clk 0:00:15]}  Bf3 {[%clk 0:00:37]} 42. Ng5 {[%clk 0:00:06]}  Bxd5 {[%clk 0:00:36]} 43. Rd1 {[%clk 0:00:06]}  Bg8 {[%clk 0:00:36]} 44. a4 {[%clk 0:00:06]}  a5 {[%clk 0:00:35]} 45. c4 {[%clk 0:00:05]}  b6 {[%clk 0:00:33]} 46. Rc1 {[%clk 0:00:05]}  Rf5 {[%clk 0:00:31]} 47. Ne4 {[%clk 0:00:04]}  Rf3 {[%clk 0:00:30]} 48. Kg2 {[%clk 0:00:03]}  Re3 {[%clk 0:00:30]} 49. Nc3 {[%clk 0:00:03]}  Bxc4 {[%clk 0:00:28]} 50. Kf2 {[%clk 0:00:03]}  Rh3 {[%clk 0:00:26]} 51. Kg2 {[%clk 0:00:04]}  Rd3 {[%clk 0:00:27]} 52. Nb5 {[%clk 0:00:02]}  Bxb5 {[%clk 0:00:23]} 53. axb5 {[%clk 0:00:03]}  Kf6 {[%clk 0:00:21]} 54. Rxc7 {[%clk 0:00:03]}  Rd5 {[%clk 0:00:22]} 55. Rc6 {[%clk 0:00:03]}  Rxb5 {[%clk 0:00:22]} 56. Rxd6+ {[%clk 0:00:04]}  Kf5 {[%clk 0:00:22]} 57. Bg1 {[%clk 0:00:04]}  Rb2+ {[%clk 0:00:21]} 58. Kg3 {[%clk 0:00:04]}  b5 {[%clk 0:00:21]} 59. Ra6 {[%clk 0:00:03]}  a4 {[%clk 0:00:21]} 60. Bc5 {[%clk 0:00:04]}  Rb3+ {[%clk 0:00:21]} 61. Kg2 {[%clk 0:00:04]}  Nf4+ {[%clk 0:00:21]} 62. Kf2 {[%clk 0:00:03]}  Nd3+ {[%clk 0:00:22]} 0-1


[Site "https://www.chess.com"]